{"text_format":"1","workbook":"xlsx","n_sheets":5,"sheets":["SOW Description","Phase","Special Terms and Conditions","Milestone Summary","Definitions"],"not_rendered":{"charts":0,"images":1,"macros":1,"external_links":2,"defined_names":24,"comments":0,"pivot_tables":0},"unopened":[],"bounds":{"document_bytes":16777216,"sheet_cells":100000,"rows_first":2000,"rows_last":500,"rows_between":2000,"halvings":0,"cell_chars":16384,"cell_head_chars":4096},"cells_cut":0,"cells_raw":0,"read":"whole","date_system":"1900"}

{"sheet":"SOW Description","index":0,"n_rows":52,"n_cols":3,"rows_kept":52,"cut":false,"hidden":false,"merged":[[37,0,37,1],[38,0,38,1],[28,0,28,1],[29,0,29,1],[30,0,30,1],[31,0,31,1],[32,0,32,1],[33,0,33,1],[34,0,34,1],[35,0,35,1],[36,0,36,1],[50,0,50,1],[16,0,16,2],[18,0,18,2],[49,0,49,1],[46,0,46,1],[47,0,47,1],[48,0,48,1],[40,0,40,1],[41,0,41,1],[42,0,42,1],[43,0,43,1],[44,0,44,1],[45,0,45,1],[21,0,21,1],[20,0,20,1],[39,0,39,1],[1,0,1,2],[24,0,24,1],[25,0,25,1],[26,0,26,1],[27,0,27,1],[19,0,19,1],[22,0,22,1],[23,0,23,1],[4,0,4,1],[3,0,3,1]]}
[]
["MILESTONE DESCRIPTION TABLE"]
[]
["Agency Term Contract Number:"]
["PBC Contract Number:"]
[null,"9-Digit Facility ID Number:"]
[null,"STCM Facility Name:"]
[]
["SubPhase(s):"]
[]
[]
[]
[]
[]
[]
["Specifications"]
["All work must be performed in accordance with this Scope of Work (SOW) including Special Terms and Conditions, Milestone Summary, and any attachments, Chapters 62-160, 62-532, 62-777, 62-780, Florida Administrative Code (F.A.C.), all applicable FDEP and Water Management District guidance memoranda, standard industry procedure and as described in the Agency Term Contract (ATC). Copies of all referenced guidelines are available at: http://www.dep.state.fl.us/waste/categories/pcp/default.htm. Reports must be submitted using the appropriate FDEP forms found at http://www.dep.state.fl.us/waste/categories/pcp/pg documents.htm."]
[]
["Milestone Description Table"]
["Milestone 1 Description:"]
["Milestone 1 Deliverable:"]
["Milestone 1 Due Days:"]
["Milestone 2 Description:"]
["Milestone 2 Deliverable:"]
["Milestone 2 Due Days:"]
["Milestone 3 Description:"]
["Milestone 3 Deliverable:"]
["Milestone 3 Due Days:"]
["Milestone 4 Description:"]
["Milestone 4 Deliverable:"]
["Milestone 4 Due Days:"]
["Milestone 5 Description:"]
["Milestone 5 Deliverable:"]
["Milestone 5 Due Days:"]
["Milestone 6 Description:"]
["Milestone 6 Deliverable:"]
["Milestone 6 Due Days:"]
["Milestone 7 Description:"]
["Milestone 7 Deliverable:"]
["Milestone 7 Due Days:"]
["Milestone 8 Description:"]
["Milestone 8 Deliverable:"]
["Milestone 8 Due Days:"]
["Milestone 9 Description:"]
["Milestone 9 Deliverable:"]
["Milestone 9 Due Days:"]
["Milestone 10 Description:"]
["Milestone 10 Deliverable:"]
["Milestone 10 Due Days:"]
["PO End Days:",null,{"$f":"(IF(C49>0,C49+60,IF(C46>0,C46+60,IF(C43>0,C43+60,IF(C40>0,C40+60,IF(C37>0,C37+60,IF(C34>0,C34+60,IF(C31>0,C31+60,IF(C28>0,C28+60,IF(C25>0,C25+60,IF(C22>0,C22+60,\"\")))))))))))","v":""}]
["Total Performance Period Days:",null,"See PO Start Date - PO End Date"]
["Any blank fields in the Task Description Table are not applicable to this scope of work."]

{"sheet":"Phase","index":1,"n_rows":14,"n_cols":1,"rows_kept":14,"cut":false,"hidden":true,"merged":[]}
["SUBPHASE"]
[]
["LSRAP"]
["RAP"]
["RAPM"]
["NAM"]
["SR"]
["FPR"]
["RAC"]
["STARTUP"]
["O&M"]
["PARM"]
["WA"]
["OTHER"]

{"sheet":"Special Terms and Conditions","index":2,"n_rows":136,"n_cols":1,"rows_kept":136,"cut":false,"hidden":false,"merged":[[135,0,138,0],[101,0,102,0],[99,0,100,0],[97,0,98,0],[105,0,109,0],[111,0,112,0],[114,0,115,0],[126,0,128,0],[2,0,5,0],[8,0,9,0],[12,0,14,0],[18,0,21,0],[24,0,28,0],[31,0,34,0],[40,0,43,0],[37,0,38,0],[46,0,52,0],[60,0,65,0],[68,0,69,0],[116,0,120,0],[123,0,124,0],[72,0,73,0],[76,0,78,0],[81,0,84,0],[87,0,91,0],[94,0,95,0]]}
["SPECIAL TERMS AND CONDITIONS"]
[]
["In accordance with the Amended and Restated Agency Term Contract paragraph 5B, this Performance Based Cleanup (PBC) is a Pay for Performance (PFP) purchase order. Terms and conditions of the PBC/PFP work assignment which conflict with those contained in Agency Term Contract (ATC), as applicable, shall have precedence and control. "]
[]
[]
[]
[]
["1.  SCHEDULE OF PAY ITEMS"]
["All negotiated milestone/task costs associated with this project are provided in the SPI (Attachment B to this Purchase Order (PO))."]
[]
[]
["2.  REQUESTS FOR CHANGE"]
["All Requests for Change (RFC) must be discussed with the FDEP/LP site manager before submission. Submission of the RFC must be in writing using the RFC form in accordance with paragraphs 2.A and 26 of the ATC and can be found at: "]
[]
[]
["http://www.dep.state.fl.us/waste/categories/pcp/pages/templates.htm"]
[]
["3.  TOTAL COST"]
["The Total Cost (Purchase Order Amount) for site rehabilitation activities at the Facility (the property where the source(s) of the contaminated facilityis (are) or was (were) located) specified in Attachment A – Milestone Summary. The Department shall not expend more for site rehabilitation at this Facility than the Total Cost except as provided in paragraph 12."]
[]
[]
[]
[]
["4.  STATEMENT OF CONTRACTOR RESPONSIBILITY"]
["The Contractor provided the cost estimate(s) and had a full and fair opportunity to inspect the Department's files and the Facility. Both the Contractor and the Department were full parties to the negotiations and each had professional and competent advisors. No unilateral mistake, error, or omission by the Contractor (including but not limited to those resulting in insufficient site assessment or remedial design) shall excuse its performance, compel or require the Department to renegotiate this Purchase Order (PO)."]
[]
[]
[]
[]
[]
["5.  REMEDIATION OF ALL PETROLEUM CONTAMINATION"]
["The Contractor will remediate all IPTF eligible petroleum contamination identified as emanating from the Facility including all IPTF eligible petroleum contamination that migrates off the source or Facility property. However, any costs associated with any non-petroleum contamination or petroleum contamination not IPTF eligible will not be compensated by the Department."]
[]
[]
[]
[]
["6.  PERFORMANCE BASED MEASURES FOR CLEANUP"]
["The Contractor shall implement proactive and aggressive cleanup activities at the Facility, and the Contractor will achieve the milestones in accordance with the specified time frame for each milestone."]
[]
[" "]
["The work shall include a one (1) year warranty from the date of the Department’s acceptance of work for all workmanship and equipment provided and installed by the Contractor. The Contractor is responsible for replacing and correcting any defective equipment or failures due to poor workmanship during the one (1) year warranty period. The warranty period shall survive the term of the PO."]
[]
[]
[]
["  "]
["7.  MILESTONE MEASUREMENTS"]
["Baseline Data: The Contractor shall provide updated analytical data, when required by Attachment A – Milestone Summary, and must send this data to the Department prior to proceeding to the next milestone activities. The Department shall use this data as the reference for monitoring Contractor performance and reductions in contaminant concentrations. Contaminant reduction milestone calculations shall be based upon the reduction of all specified contaminant groups in each Key Well (as defined in Attachment A – Milestone Summary). The following formula shall be used for calculating the percent reduction milestones:"]
[]
[]
[]
[]
[]
[]
[]
["% Reduction (KWi) = {1 – [(Cmli – Ctl) / (Cbli – Ctl)]} * 100"]
[]
["Where:"]
[]
["KWi     =  key well number i"]
["Cmli    =  milestone measurement concentration of contaminant group in key well i"]
["Ctl       =  target level concentration for contaminant group. This value is calculated by summing the individual  Cleanup Target Levels  for each contaminant in  the group. For example, if the Target Levels are NADCs, then for the BTEX + MTBE group this value is 1,200 mg/L, and for the Naphthalene group this  value is 700 mg/L by summing the individual Cleanup Target Levels for each contaminant in the group."]
[]
[]
[]
[]
[]
["Cbli  =    baseline concentration of contaminant group in key well i"]
[]
["Please note that the milestone/task for Cleanup Target Level(s) Achievement is for All Media, not Key Wells only."]
[]
[]
["8.  REDESIGNATION OF WELLS"]
["Upon agreement by the FDEP/LP site manager, any changes to Key and Perimeter well designation shall be handled via a request for change (RFC)."]
[]
[]
["9.  MILESTONE DUE DATE EXTENSION"]
["The Contractor may submit a request for change for a milestone due date extension with justification. The Department, at its sole discretion, may extend a milestone due date, however, the term of this PO may not exceed the Period of service (POS) end date of the PO."]
[]
[]
[]
["10. DEPARTMENT FUNDING OF MILESTONES"]
["The Department will encumber State funds on the PO start date. The total cost, to be encumbered on the PO start date for the site rehabilitation activities is specified in Attachment A – Milestone Summary. The Department may, at its sole discretion, authorize funding over the Total Cost, provided that funding CAP(s) determined by eligibility or other PO with the Department is (are) not exceeded, if applicable."]
[]
[]
[]
[]
["11. INVOICING FOR MILESTONES"]
["The Contractor shall not submit an invoice unless; the Department authorized funding for the Milestone as evidenced by the Contractor's receipt of a PO for that milestone, the Contractor submitted the Milestone Completion Report to the Department (as specified in Attachment A – Milestone Summary and Attachment B – Schedule of Pay Items) indicating the milestone has been achieved, and such report has been approved, in writing by the Department."]
[]
[]
[]
[]
[]
["12. RENEGOTIATION"]
["The Department may, at its sole discretion, renegotiate the terms contained in Attachment A – Milestone Summary. Renegotiation may be performed under the following conditions:"]
[]
[]
["(1) Contaminant levels increase due to discovery of a new discharge or migration of contamination emanating from the non-source property."]
[]
["(2) A Force Majeure event rendering existing remedial efforts inoperable or implausible to implement, despite appropriate safety measures being instituted."]
[]
["(3) Changes in statutes or rules requiring or allowing the establishment of Cleanup Target Levels other than those specified in current rules. "]
[]
[]
["13. DEPARTMENT CONFIRMATION AND VERIFICATION"]
["The Department reserves the right to verify representations made regarding progress, milestones or other conditions, at its sole cost and discretion, at any time. The Department is not under any obligation to notify Contractor of such inspections. Any and all costs incurred by the Contractor for participating in an inspection shall not be compensated or reimbursed in any way by the Department. Specific inspection activities may include, but are not limited to the following:"]
[]
[]
[]
[]
[]
["(1) Sampling existing wells, collecting split samples during the sampling events, or installing additional wells or soil borings."]
[]
["(2) Sampling to confirm maintenance of the Target Levels for all contaminants and all media."]
["(3) Verifying achievement of the negotiated endpoint milestone shall be conducted and concluded within three months of milestone completion report submitted by the Contractor. "]
[]
["(4) The Contractor shall provide access to the remedial system and components upon request by the Department. The Department's inspector(s) will not be authorized to make any changes to the operating parameters or status of a system, other than in response to an emergency. The Contractor is responsible for notifying the Department immediately of any specific hazards at a Facility or any necessary precautions to be taken to conduct the inspections."]
[]
[]
[]
[]
[]
["14. TERMINATION"]
["In addition to other provisions of the Amended and Restated Agency Term Contract, the Department may terminate this PO for failure to perform, defined as, but not limited to the following:"]
[]
[]
["(1) The agreed upon endpoint as stated in Attachment A – Milestone Summary is not achieved by the end date of the PO, the Department may, at that time, reassign the site(s), in a manner that the Department deems appropriate, however the Contractor will not be selected to continue working at the Facility."]
[]
[]
["(2) The Contractor has failed to take appropriate steps to maintain the milestone completion schedule."]
["(3) The Contractor has failed to perform pursuant to the PO including attachments."]
["(4) The PO has been abandoned prior to Period of Service (\"POS\") completion."]
["(5) The performance of this PO is not in the best interest of the State."]
["(6) There has been a material breach of this PO that has not been remedied pursuant to the ATC."]
[]
["Upon termination due to the Contractor’s failure to perform, the Department shall not be responsible for its Cost Share for work performed on any unachieved milestone(s). In addition, the Department may disqualify the ATC (and any successor entity, affiliated entity, or related entity) from future POs under Performance Based Cleanup. "]

{"sheet":"Milestone Summary","index":3,"n_rows":91,"n_cols":13,"rows_kept":91,"cut":false,"hidden":false,"merged":[[62,9,62,12],[54,9,54,12],[70,9,70,12],[86,9,86,12],[3,2,3,6],[6,2,6,8],[52,2,52,12],[14,8,14,9],[15,1,15,6],[33,2,33,11],[35,2,35,11],[32,0,32,2],[43,0,49,12],[16,8,16,9],[20,8,20,9],[20,1,20,6],[37,0,37,1],[38,2,38,11],[32,3,32,11],[35,0,35,1],[36,2,36,11],[36,0,36,1],[11,3,11,5],[9,0,9,12],[23,1,23,6],[24,0,24,6],[21,8,21,9],[22,8,22,9],[23,8,23,9],[21,1,21,6],[22,1,22,6],[24,8,24,9],[39,2,39,11],[39,0,39,1],[14,1,14,6],[13,11,13,12],[13,8,13,9],[13,1,13,5],[19,8,19,9],[18,1,18,6],[19,1,19,6],[17,8,17,9],[18,8,18,9],[17,1,17,6],[15,8,15,9],[31,3,31,11],[37,2,37,11],[38,0,38,1],[4,2,4,6],[1,0,1,12],[5,2,5,6],[33,0,33,1],[11,7,11,9],[11,10,11,11],[26,0,26,12],[27,0,27,12],[28,0,28,12],[4,0,4,1],[5,0,5,1],[4,8,4,12],[5,8,5,12],[6,10,6,12],[16,1,16,6],[11,0,11,2],[84,5,84,12],[83,5,83,12],[91,0,105,12],[59,3,59,12],[60,3,60,12],[68,3,68,12],[67,3,67,12],[78,3,78,12],[77,3,77,12],[76,3,76,12],[75,3,75,12],[84,0,84,2],[59,0,59,2],[68,0,68,2],[60,0,60,2],[67,0,67,2]]}
[]
["MILESTONE SUMMARY"]
[]
["Agency Term Contract #:",null,{"$f":"IF('SOW Description'!C4=\"\",\"\", 'SOW Description'!C4)","v":""}]
["PBC Contract #:",null,{"$f":"IF('SOW Description'!C5=\"\",\"\",'SOW Description'!C5)","v":""}]
["FDEP Facility ID #:",null,{"$f":"IF('SOW Description'!C6=\"\",\"\",'SOW Description'!C6)","v":""}]
["FDEP Facility Name",null,{"$f":"IF('SOW Description'!C7=\"\",\"\",'SOW Description'!C7)","v":""}]
[]
[]
["1. Milestone Summary and Payment Schedule"]
[]
["Total Cost / PO Amount",null,null,null,null,null,null,"Estimated Utility Cost*"]
[]
[null,"Milestones",null,null,null,null,null,"Payment %","Payment Amt.",null,"Months","Milestone Days"]
["Milestone 1:",null,null,null,null,null,null,null,{"$f":"ROUND(H15*$D$12,4)","v":0},null,{"$f":"IF(M15=\"\",\"\",M15/30)","v":""},null,{"$f":"IF('SOW Description'!C22=\"\",\"\",'SOW Description'!C22)","v":""}]
["Milestone 2:",null,null,null,null,null,null,null,{"$f":"ROUND(H16*$D$12,4)","v":0},null,{"$f":"IF(M16=\"\",\"\",M16/30)","v":""},null,{"$f":"IF('SOW Description'!C25=\"\",\"\",'SOW Description'!C25)","v":""}]
["Milestone 3:",null,null,null,null,null,null,null,0,null,"",null,{"$f":"IF('SOW Description'!C28=\"\",\"\",'SOW Description'!C28)","v":""}]
["Milestone 4:",null,null,null,null,null,null,null,0,null,"",null,{"$f":"IF('SOW Description'!C31=\"\",\"\",'SOW Description'!C31)","v":""}]
["Milestone 5:",null,null,null,null,null,null,null,0,null,"",null,{"$f":"IF('SOW Description'!C34=\"\",\"\",'SOW Description'!C34)","v":""}]
["Milestone 6:",null,null,null,null,null,null,null,0,null,"",null,{"$f":"IF('SOW Description'!C37=\"\",\"\",'SOW Description'!C37)","v":""}]
["Milestone 7:",null,null,null,null,null,null,null,0,null,"",null,{"$f":"IF('SOW Description'!C40=\"\",\"\",'SOW Description'!C40)","v":""}]
["Milestone 8:",null,null,null,null,null,null,null,0,null,"",null,{"$f":"IF('SOW Description'!C43=\"\",\"\",'SOW Description'!C43)","v":""}]
["Milestone 9:",null,null,null,null,null,null,null,0,null,"",null,{"$f":"IF('SOW Description'!C46=\"\",\"\",'SOW Description'!C46)","v":""}]
["Milestone 10:",null,null,null,null,null,null,null,0,null,"",null,{"$f":"IF('SOW Description'!C49=\"\",\"\",'SOW Description'!C49)","v":""}]
["Totals",null,null,null,null,null,null,{"$f":"SUM(H15:H24)","v":0},{"$f":"SUM(I15:J24)","v":0},null,{"$f":"IF(K24<>\"\",K24+2,IF(K23<>\"\",K23+2,IF(K22<>\"\",K22+2,IF(K21<>\"\",K21+2,IF(K20<>\"\",K20+2,IF(K19<>\"\",K19+2,IF(K18<>\"\",K18+2,IF(K17<>\"\",K17+2,IF(K16<>\"\",K16+2,IF(K15<>\"\",K15+2,\"\"))))))))))","v":""},"PO End:",{"$f":"IF(M24<>\"\",M24+60,IF(M23<>\"\",M23+60,IF(M22<>\"\",M22+60,IF(M21<>\"\",M21+60,IF(M20<>\"\",M20+60,IF(M19<>\"\",M19+60,IF(M18<>\"\",M18+60,IF(M17<>\"\",M17+60,IF(M16<>\"\",M16+60,IF(M15<>\"\",M15+60,\"\"))))))))))","v":""}]
[]
["* Utility costs are paid by the Department outside of this PO. Utility costs are applied toward any CAPS on funding for the facility."]
["The Department must establish the account with the utility company. Contractor should discuss timing of establishing service"]
["with the FDEP/LP Site Manager."]
[]
["2. Remediation Strategy and Endpoint"]
["Primary Remediation Technology:"]
["Add-Ons:"]
["Closure/Endpoint:"]
["    Target Levels:"]
["Groundwater"]
["Soil Direct Exposure"]
["Soil Leachability"]
["Surface Water"]
["Other"]
[]
[]
["3. Description of Correction Based Action(s)  (in the event primary technology fails to meet milestones)"]
[]
[]
[]
[]
[]
[]
[]
[]
["4. Baseline Groundwater Sampling"]
["MWs  (list):"]
["Contaminants of Concern:"]
[]
[]
[]
[]
["5. Key Well Sampling:"]
["Key Wells (list)"]
["Minimum Sampling Frequency:"]
["Contaminants of Concern:"]
[]
[]
[]
[]
["6. Perimeter Well Sampling:"]
["Perimeter Wells (list)"]
["Minimum Sampling Frequency:"]
["Contaminants of Concern:"]
[]
[]
[]
[]
["7. Remediation System Sampling (Indicate Influent / Effluent / Mid and Analytes to be tested)"]
["Air "]
["Groundwater Treatment"]
["Other"]
["Minimum Reporting Frequency"]
[]
[]
[]
["8. Confirmatory Soil Sampling (following the conclusion of PARM or NAM):"]
["Minimum # of Borings (w Est. Total Footage):"]
["Soil Sampling Locations:"]
["Contaminants of Concern:"]
[]
[]
[]
[]
["9. Site Specific Considerations:"]

{"sheet":"Definitions","index":4,"n_rows":62,"n_cols":13,"rows_kept":62,"cut":false,"hidden":true,"merged":[]}
["ClosureEndpoint",null,null,null,null,null,null,null,null,null,null,null,"Milestones"]
["Select",null,null,null,null,null,null,null,null,null,null,null,"Select"]
[]
["TIER1. RMO I. Cleanup Target Levels (CTLs), ALL Media",null,null,null,null,null,null,null,null,null,null,null,"Alternate CTLs Achievement"]
["TIER 2. RMO II. Alternate Cleanup Target Levels (CTLs), Institutional and/or Engineering  Controls",null,null,null,null,null,null,null,null,null,null,null,"As-Built Drawings"]
["TIER 3. RMO III. Alternate Cleanup Target Levels (CTLs), Institutional and/or Engineering Controls",null,null,null,null,null,null,null,null,null,null,null,"Baseline Sampling"]
[null,null,null,null,null,null,null,null,null,null,null,null,"Chemical Injection Report"]
["GWTargetLevels",null,null,null,null,null,null,null,null,null,null,null,"CTLs Achievement"]
["Select",null,null,null,null,null,null,null,null,null,null,null,"Confirmatory Soil Sampling"]
[null,null,null,null,null,null,null,null,null,null,null,null,"Construction Drawings"]
["CTLs, Residential, Chapter 62-777 F.A.C. ",null,null,null,null,null,null,null,null,null,null,null,"Design Specifications"]
["RMO IIA. COCs < GW of low yield/poor quality CTLs",null,null,null,null,null,null,null,null,null,null,null,"LSRAP"]
["RMO IIB. COCs > Applicable CTLs provided Engineering Controls",null,null,null,null,null,null,null,null,null,null,null,"Maintain Alternate CTLs, 2 Quarters"]
["RMO IIC. COCs > GW or FSW CTLs, and COCs < MSW CTLs",null,null,null,null,null,null,null,null,null,null,null,"Maintain Alternate CTLs, 2 Quarters w/ NFA Recommendation"]
["RMO IID. COCs > Applicable GW CTLs provided plume is stable/shrinking",null,null,null,null,null,null,null,null,null,null,null,"Maintain CTLs, 2 Quarters"]
["Other",null,null,null,null,null,null,null,null,null,null,null,"Maintain CTLs, 2 Quarters W/ NFA Recommendation"]
[null,null,null,null,null,null,null,null,null,null,null,null,"Maintain Alternate CTLs, 1 year"]
["SoilDETargetLevels",null,null,null,null,null,null,null,null,null,null,null,"Maintain Alternate CTLs, 1 year w/ NFA Recommendation"]
["Select",null,null,null,null,null,null,null,null,null,null,null,"Maintain CTLs, 1 year"]
["n/a",null,null,null,null,null,null,null,null,null,null,null,"Maintain CTLs, 1 year w/ NFA Recommendation"]
["CTLs, Residential Direct Exposure, Chapter 62-777 F.A.C. ",null,null,null,null,null,null,null,null,null,null,null,"NAM Plan"]
["RMO IIA. COCs < Commercial/Industrial CTLs",null,null,null,null,null,null,null,null,null,null,null,"Pilot Test Report"]
["RMO IIB. COCs > Level I Residential CTLs, provided Engineering Controls",null,null,null,null,null,null,null,null,null,null,null,"RAP"]
["RMO IIC. COCs < apportioned Alternative Commercial/Industrial CTLs, calc. using site-specific soil properties",null,null,null,null,null,null,null,null,null,null,null,"RAPMOD"]
["RMO IID. TRPHs < TRPH Commercial/Industrial CTLs per TRPH fractions in App. C",null,null,null,null,null,null,null,null,null,null,null,"Reduction to 25% of Baseline Concentrations"]
["Other",null,null,null,null,null,null,null,null,null,null,null,"Reduction to 25% of NADCs"]
[null,null,null,null,null,null,null,null,null,null,null,null,"Reduction to 50% of Baseline Concentrations"]
["SoilLeachTargetLevels",null,null,null,null,null,null,null,null,null,null,null,"Reduction to 50% of NADCs"]
["Select",null,null,null,null,null,null,null,null,null,null,null,"Reduction to 75% of Baseline Concentrations"]
["n/a",null,null,null,null,null,null,null,null,null,null,null,"Reduction to 75% of NADCs"]
["CTLs, Residential Leachability, Chapter 62-777 F.A.C. ",null,null,null,null,null,null,null,null,null,null,null,"Reduction to 90% of Baseline Concentrations"]
["RMO IIA. COCs < Alternative Leach-Based SCTLs (Fig. 8), calc. using applicable Level II GCTLs",null,null,null,null,null,null,null,null,null,null,null,"Reduction to 90% of NADCs"]
["RMO IIB. Direct Leachate results (SPLP/TCLP) < applicable Level II GCTLs",null,null,null,null,null,null,null,null,null,null,null,"Remedial Action Interim Report"]
["RMO IIC. COCs > Level I Leach-Based SCTLs (Table II), provided Engineering Control (min. 1 yr of GW monitoring)",null,null,null,null,null,null,null,null,null,null,null,"Source Removal Report"]
["RMO IID. COCs < Alternative Leach-Based SCTLs, calc. (Fig. 8) using site-specific soil properties and applicable Level II GCTLs",null,null,null,null,null,null,null,null,null,null,null,"Supplemental Site Assessment"]
["RMO IIE. TRPHs < Alternative Leach-Based SCTLs per TRPH fractions ",null,null,null,null,null,null,null,null,null,null,null,"System Construction Report"]
["RMO IIF. Demonstration (min. 1 yr GW monitoring) that COCs per site-specific conditions will not leach at levels > applicable Level I or Level II GCTLs",null,null,null,null,null,null,null,null,null,null,null,"System Startup Report"]
["Other",null,null,null,null,null,null,null,null,null,null,null,"Well Abandonment/Site Restoration"]
[]
["SurfaceWaterTargetLevels"]
["Select"]
["n/a"]
["Marine: 62-777 F.A.C., Marine SW Criteria"]
["Other"]
[]
["OtherTargets"]
["Select"]
["n/a"]
["FDOT MOU"]
["Non-RCICs"]
["Other"]
[]
["PrimaryTechnology",null,null,null,"AddOns"]
["Select",null,null,null,"Select"]
["AS/SVE",null,null,null,"n/a"]
["AS /SVE Episodic",null,null,null,"Carbon"]
["Biosparge",null,null,null,"Catox"]
["Excavation",null,null,null,"Other"]
["Injection"]
["Injection - AS/SVE"]
["Innovative Technology"]
["Multiphase Extraction"]